fUSD/lending_fUSD_20250502
["ID","MTS","AMOUNT","RATE_DAILY","PERIOD"]
[359638312,1746204644914,-502.19667785,0.00019973,2]
[359638313,1746204644923,-500.0,0.00019973,2]
[359638314,1746204644933,-500.0,0.00019973,2]
[359638315,1746204644942,-501.90027515,0.00019973,2]
[359638316,1746204644952,-538.7932649,0.00019973,2]
[359638317,1746204644961,-505.11388319,0.00019973,2]
[359638318,1746204644970,-243.25265261,0.00019973,2]
[359638319,1746204644982,-302.52572163,0.00019973,2]
[359638320,1746204644991,-500.0,0.00019973,2]
[359638321,1746204645000,-500.0,0.00019973,2]
[359638322,1746204645010,-500.0,0.00019973,2]
[359638323,1746204645019,-517.08214642,0.00019973,2]
[359638324,1746204645028,-1007.59969745,0.00019976,2]
[359638325,1746204645037,-797.0,0.00019978,2]
[359638326,1746204645046,-878.0,0.00019978,2]
[359638327,1746204645056,-6718.0,0.00019978,2]
[359638328,1746204645066,-153.0,0.00019978,2]
[359638329,1746204645075,-855.13848234,0.00019979,2]
[359638330,1746204645085,-1319.0,0.00019986,2]
[359638331,1746204645094,-12053.6246093,0.00019986,2]
[359638332,1746204645103,-3207.974971,0.00019986,2]
[359638333,1746204645113,-230279.3598031,0.00019986,2]
[359638334,1746204645122,-23828.229848,0.00019986,2]
[359638335,1746204645132,-9262.2766078,0.00019986,2]
[359638336,1746204645142,-1007.59969745,0.0001999,2]
[359638337,1746204645151,-1007.59969745,0.0001999,2]
[359638338,1746204645161,-500.0,0.00019999,2]
[359638339,1746204645170,-675.05638042,0.00019999,2]
[359638340,1746204645179,-500.0,0.00019999,2]
[359638341,1746204645188,-334.77930665,0.00019999,2]
[359638342,1746204645198,-300.0,0.00019999,2]
[359638343,1746204645208,-450.0,0.00019999,2]
[359638344,1746204645217,-450.0,0.00019999,2]
[359638345,1746204645227,-450.0,0.00019999,2]
[359638346,1746204645237,-519.7402053,0.00019999,2]
[359638347,1746204645247,-500.0,0.00019999,2]
[359638348,1746204645256,-500.0,0.00019999,2]
[359638349,1746204645266,-500.0,0.00019999,2]
[359638350,1746204645277,-500.0,0.00019999,2]
[359638351,1746204645286,-405.21,0.00019999,2]
[359638352,1746204645296,-622.85,0.00019999,2]
[359638353,1746204645306,-346.12920957,0.0002,2]
[359638354,1746204645315,-385196.14146259,0.0002,2]
[359638355,1746204645324,-2196877.65942,0.0002,2]
[359638356,1746204645333,-30000.0,0.0002,2]
[359638357,1746204645343,-215.0,0.0002,2]
[359638358,1746204645353,-215.0,0.0002,2]
[359638359,1746204645362,-215.0,0.0002,2]
[359638360,1746204645372,-215.0,0.0002,2]
[359638361,1746204645381,-215.0,0.0002,2]
[359638362,1746204645391,-215.0,0.0002,2]
[359638363,1746204645400,-215.0,0.0002,2]
[359638364,1746204645410,-215.0,0.0002,2]
[359638365,1746204645419,-215.0,0.0002,2]
[359638366,1746204645429,-215.0,0.0002,2]
[359638367,1746204645438,-215.0,0.0002,2]
[359638368,1746204645447,-215.0,0.0002,2]
[359638369,1746204645456,-215.0,0.0002,2]
[359638370,1746204645466,-215.0,0.0002,2]
[359638371,1746204645476,-215.0,0.0002,2]
[359638372,1746204645485,-215.0,0.0002,2]
[359638373,1746204645495,-1713.39,0.0002,2]
[359638374,1746204645505,-577.249669,0.0002,2]
[359638375,1746204645514,-250.0,0.0002,3]
[359638376,1746204645523,-250.0,0.0002,2]
[359638377,1746204645533,-250.0,0.0002,2]
[359638378,1746204645543,-250.0,0.0002,2]
[359638379,1746204645555,-250.0,0.0002,2]
[359638380,1746204645565,-250.0,0.0002,2]
[359638381,1746204645575,-250.0,0.0002,2]
[359638382,1746204645584,-250.0,0.0002,2]
[359638383,1746204645594,-250.0,0.0002,2]
[359638384,1746204645604,-250.0,0.0002,2]
[359638385,1746204645614,-250.0,0.0002,2]
[359638386,1746204645623,-250.0,0.0002,2]
[359638387,1746204645634,-367.2,0.0002,2]
[359638388,1746204645644,-6038.44581933,0.0002,2]
[359638389,1746204645654,-151.0,0.0002,2]
[359638390,1746204645663,-284.93383375,0.0002,2]
[359638391,1746204645672,-242.0,0.0002,3]
[359638392,1746204645682,-1644971.48868659,0.0002,2]
[359638393,1746204646049,-383.87355154,0.0002,2]
[359638394,1746204646060,-616.26924459,0.0002,2]
[359638395,1746204646099,-3470.3871961,0.0002,2]
[359638396,1746204646429,-168.42863539,0.000199,2]
[359638397,1746204646439,-844.07069233,0.0002,2]
[359638398,1746204646464,-272.0374,0.0002,2]
[359638399,1746204646484,-17381.26530833,0.0002,2]
[359638400,1746204646495,-47209.16350628,0.0002,2]
[359638401,1746204646797,-2012.31270935,0.0002,2]
[359638402,1746204647196,-3000.0,0.0002,2]
[359638403,1746204647218,-1950.0,0.0002,2]
[359638404,1746204647229,-2790.15908406,0.0002,2]
[359638405,1746204710106,23900.0,0.00019084,2]
[359638406,1746204729878,2820.36,0.00032876,60]
[359638407,1746204793844,2033.56986946,0.00018972,2]
[359638408,1746204845135,-162.84,0.00019582,2]
[359638409,1746204845160,-764.6447,0.000196,2]
[359638410,1746204845184,-200.0,0.00019679,2]
[359638411,1746204845206,-250.0,0.00019679,2]
[359638412,1746204845227,-300.0,0.00019756,2]
[359638413,1746204845249,-226.0,0.00019756,2]
[359638414,1746204845271,-450.0,0.00019757,2]
[359638415,1746204845295,-450.0,0.00019757,2]
[359638416,1746204845318,-450.0,0.00019757,2]
[359638417,1746204845344,-450.0,0.00019757,2]
[359638418,1746204845368,-819.7,0.00019757,2]
[359638419,1746204845391,-450.0,0.00019757,2]
[359638420,1746204845414,-450.0,0.00019757,2]
[359638421,1746204845436,-450.0,0.00019757,2]
[359638422,1746204845459,-450.0,0.00019757,2]
[359638423,1746204845481,-450.0,0.00019757,2]
[359638424,1746204845502,-450.0,0.00019757,2]
[359638425,1746204845524,-1090.47,0.00019757,2]
[359638426,1746204845546,-450.0,0.00019757,2]
[359638427,1746204845568,-450.0,0.00019757,2]
[359638428,1746204845591,-450.0,0.00019757,2]
[359638429,1746204845616,-450.0,0.00019757,2]
[359638430,1746204845638,-450.0,0.00019757,2]
[359638431,1746204845661,-450.0,0.00019757,2]
[359638432,1746204845684,-450.0,0.00019757,2]
[359638433,1746204845707,-450.0,0.00019757,2]
[359638434,1746204845729,-450.0,0.00019757,2]
[359638435,1746204845751,-450.0,0.00019757,2]
[359638436,1746204845774,-450.0,0.00019757,2]
[359638437,1746204845796,-450.0,0.00019757,2]
[359638438,1746204845818,-638.12,0.00019757,2]
[359638439,1746204845840,-1158.39,0.00019757,2]
[359638440,1746204845861,-450.0,0.00019757,2]
[359638441,1746204845883,-450.0,0.00019757,2]
[359638442,1746204845905,-450.0,0.00019757,2]
[359638443,1746204845927,-450.0,0.00019757,2]
[359638444,1746204845949,-450.0,0.00019757,2]
[359638445,1746204845971,-450.0,0.00019757,2]
[359638446,1746204845992,-545.1,0.00019757,2]
[359638447,1746204846015,-450.0,0.00019757,2]
[359638448,1746204846040,-450.0,0.00019757,2]
[359638449,1746204846061,-450.0,0.00019757,2]
[359638450,1746204846083,-501.17,0.00019757,2]
[359638451,1746204846104,-913.4,0.00019757,2]
[359638452,1746204846126,-538.88,0.00019757,2]
[359638453,1746204846147,-1111.55,0.00019757,2]
[359638454,1746204846169,-264.07665122,0.00019757,2]
[359638455,1746204846191,-625.46,0.00019757,2]
[359638456,1746204846212,-456.84,0.00019758,2]
[359638457,1746204846234,-450.0,0.00019758,2]
[359638458,1746204846256,-450.0,0.00019758,2]
[359638459,1746204846279,-677.83,0.00019758,2]
[359638460,1746204846300,-450.0,0.00019758,2]
[359638461,1746204846323,-450.0,0.00019758,2]
[359638462,1746204846345,-450.0,0.00019758,2]
[359638463,1746204846368,-450.0,0.00019758,2]
[359638464,1746204846390,-450.0,0.00019758,2]
[359638465,1746204846412,-1265.17,0.00019758,2]
[359638466,1746204846435,-450.0,0.00019758,2]
[359638467,1746204846456,-450.0,0.00019758,2]
[359638468,1746204846479,-2200.19,0.00019758,2]
[359638469,1746204846501,-450.0,0.00019758,2]
[359638470,1746204846523,-450.0,0.00019758,2]
[359638471,1746204846545,-450.0,0.00019758,2]
[359638472,1746204846568,-10736.94,0.00019758,2]
[359638473,1746204846590,-194.53251863,0.00019758,2]
[359638474,1746204846616,-734.39,0.00019758,2]
[359638475,1746204846638,-540.22183034,0.00019758,2]
[359638476,1746204846659,-599.37,0.00019758,2]
[359638477,1746204846681,-398.10757731,0.00019758,2]
[359638478,1746204846703,-450.0,0.00019758,2]
[359638479,1746204846726,-507.41,0.00019758,2]
[359638480,1746204846747,-470.24,0.00019758,2]
[359638481,1746204846769,-450.0,0.00019758,2]
[359638482,1746204846792,-450.0,0.00019758,2]
[359638483,1746204846813,-538.24,0.00019758,2]
[359638484,1746204846835,-494.92,0.00019758,2]
[359638485,1746204846856,-450.0,0.00019758,2]
[359638486,1746204846877,-450.0,0.00019758,2]
[359638487,1746204846899,-450.0,0.00019758,2]
[359638488,1746204846925,-502.71,0.00019758,2]
[359638489,1746204846947,-450.0,0.00019758,2]
[359638490,1746204846969,-450.0,0.00019758,2]
[359638491,1746204846991,-726.52,0.00019758,2]
[359638492,1746204847012,-450.0,0.00019758,2]
[359638493,1746204847034,-450.0,0.00019758,2]
[359638494,1746204847055,-606.0,0.00019758,2]
[359638495,1746204847077,-450.0,0.00019758,2]
[359638496,1746204847098,-450.0,0.00019758,2]
[359638497,1746204847119,-548.37,0.00019758,2]
[359638498,1746204847141,-450.0,0.00019758,2]
[359638499,1746204847163,-450.0,0.00019758,2]
[359638500,1746204847185,-636.53,0.00019758,2]
[359638501,1746204847208,-450.0,0.00019758,2]
[359638502,1746204847234,-542.9930432,0.00019758,2]
[359638503,1746204847259,-762.93,0.00019758,2]
[359638504,1746204847281,-580.85,0.00019758,2]
[359638505,1746204847304,-450.0,0.00019758,2]
[359638506,1746204847327,-499.98,0.00019758,2]
[359638507,1746204847351,-450.0,0.00019758,2]
[359638508,1746204847375,-450.0,0.00019758,2]
[359638509,1746204847400,-547.21,0.00019758,2]
[359638510,1746204847423,-450.0,0.00019758,2]
[359638511,1746204847450,-7446.34,0.00019758,2]
[359638512,1746204847472,-450.0,0.00019758,2]
[359638513,1746204847574,-450.0,0.00019758,2]
[359638514,1746204847597,-450.0,0.00019758,2]
[359638515,1746204847622,-27425.3636793,0.00019758,2]
[359638516,1746204847867,-95741.8463207,0.00019758,2]
[359638517,1746204847890,-450.0,0.00019758,2]
[359638518,1746204847914,-450.0,0.00019758,2]
[359638519,1746204847936,-571.3,0.00019758,2]
[359638520,1746204847958,-769.7,0.00019758,2]
[359638521,1746204847981,-625.39,0.00019758,2]
[359638522,1746204848003,-450.0,0.00019758,2]
[359638523,1746204848030,-450.0,0.00019758,2]
[359638524,1746204848053,-450.0,0.00019758,2]
[359638525,1746204848076,-41.7636793,0.00019758,2]
[359638526,1746204848147,-408.2363207,0.00019758,2]
[359638527,1746204848169,-595.44,0.00019758,2]
[359638528,1746204848193,-450.0,0.00019758,2]
[359638529,1746204848216,-6686.82,0.00019758,2]
[359638530,1746204848239,-481.63,0.00019758,2]
[359638531,1746204848261,-450.0,0.00019758,2]
[359638532,1746204848284,-699.64,0.00019758,2]
[359638533,1746204848307,-450.0,0.00019758,2]
[359638534,1746204848333,-450.0,0.00019758,2]
[359638535,1746204848355,-450.0,0.00019758,2]
[359638536,1746204848378,-1356.72,0.00019758,2]
[359638537,1746204848401,-450.0,0.00019758,2]
[359638538,1746204848424,-450.0,0.00019758,2]
[359638539,1746204848447,-450.0,0.00019758,2]
[359638540,1746204848470,-450.0,0.00019758,2]
[359638541,1746204848492,-450.0,0.00019758,2]
[359638542,1746204848515,-578.78,0.00019758,2]
[359638543,1746204848538,-785.57,0.00019758,2]
[359638544,1746204848561,-618.67,0.00019758,2]
[359638545,1746204848582,-636.04,0.00019758,2]
[359638546,1746204848625,-450.0,0.00019758,2]
[359638547,1746204848666,-448.12202068,0.00019758,2]
[359638548,1746204848705,-450.0,0.00019759,2]
[359638549,1746204848743,-615.98,0.00019759,2]
[359638550,1746204848779,-472.14,0.00019759,2]
[359638551,1746204848802,-470.42,0.00019759,2]
[359638552,1746204848824,-895.19,0.00019759,2]
[359638553,1746204848847,-1768.41,0.00019759,2]
[359638554,1746204848869,-724.84,0.00019759,2]
[359638555,1746204848893,-450.0,0.00019759,2]
[359638556,1746204848915,-450.0,0.00019759,2]
[359638557,1746204848939,-639.35,0.00019759,2]
[359638558,1746204848962,-537.03,0.00019759,2]
[359638559,1746204848985,-802.34,0.00019759,2]
[359638560,1746204849010,-590.88,0.00019759,2]
[359638561,1746204849034,-912.58,0.00019759,2]
[359638562,1746204849057,-450.0,0.00019759,2]
[359638563,1746204849082,-450.0,0.00019759,2]
[359638564,1746204849105,-1027.93,0.00019759,2]
[359638565,1746204849130,-450.0,0.00019759,2]
[359638566,1746204849154,-450.0,0.00019759,2]
[359638567,1746204849178,-450.0,0.00019759,2]
[359638568,1746204849217,-469.94,0.00019759,2]
[359638569,1746204849259,-718.89,0.00019759,2]
[359638570,1746204849303,-4667.94,0.00019759,2]
[359638571,1746204849342,-524.93,0.00019759,2]
[359638572,1746204849366,-937.16,0.00019759,2]
[359638573,1746204849390,-5383.1,0.00019759,2]
[359638574,1746204849413,-450.0,0.00019759,2]
[359638575,1746204849436,-450.0,0.00019759,2]
[359638576,1746204849459,-450.0,0.00019759,2]
[359638577,1746204849482,-4962.29,0.00019759,2]
[359638578,1746204849505,-532.12,0.00019759,2]
[359638579,1746204849529,-450.0,0.00019759,2]
[359638580,1746204849552,-450.0,0.00019759,2]
[359638581,1746204849575,-450.0,0.00019759,2]
[359638582,1746204849600,-551.71,0.00019759,2]
[359638583,1746204849627,-5101.07,0.00019759,2]
[359638584,1746204849655,-598.28,0.00019759,2]
[359638585,1746204849682,-450.0,0.00019759,2]
[359638586,1746204849708,-1095.21,0.00019759,2]
[359638587,1746204849737,-450.0,0.00019759,2]
[359638588,1746204849763,-39554.60165862,0.00019759,2]
[359638589,1746204849969,-746.681903,0.00019758,2]
[359638590,1746204849997,-65042.49834138,0.00019759,2]
[359638591,1746204850023,-471.93,0.00019759,2]
[359638592,1746204850048,-450.0,0.00019759,2]
[359638593,1746204850073,-460.36,0.00019759,2]
[359638594,1746204850096,-5836.16,0.00019759,2]
[359638595,1746204850120,-450.0,0.00019759,2]
[359638596,1746204850143,-450.0,0.00019759,2]
[359638597,1746204850165,-26092.36975562,0.00019759,2]
[359638598,1746204862225,-520.0,0.00019757,2]
[359638599,1746204862249,-450.0,0.00019757,2]
[359638600,1746204862271,-450.0,0.00019757,2]
[359638601,1746204862294,-546.24213029,0.00019758,2]
[359638602,1746204862317,-450.0,0.00019758,2]
[359638603,1746204862340,-450.0,0.00019758,2]
[359638604,1746204862363,-450.0,0.00019758,2]
[359638605,1746204862385,-527.9,0.00019758,2]
[359638606,1746204862407,-450.0,0.00019758,2]
[359638607,1746204862430,-450.0,0.00019758,2]
[359638608,1746204862453,-450.0,0.00019758,2]
[359638609,1746204862475,-5430.31024438,0.00019759,2]
[359638610,1746204862496,-504.29,0.00019759,2]
[359638611,1746204862519,-622.85,0.00019759,2]
[359638612,1746204862541,-2028.11,0.00019759,2]
[359638613,1746204862564,-450.0,0.00019759,2]
[359638614,1746204862586,-17099.67,0.00019759,2]
[359638615,1746204862613,-450.0,0.00019759,2]
[359638616,1746204862635,-450.0,0.00019759,2]
[359638617,1746204862658,-450.0,0.00019759,2]
[359638618,1746204862681,-1230.2,0.00019759,2]
[359638619,1746204862704,-450.0,0.00019759,2]
[359638620,1746204862726,-450.0,0.00019759,2]
[359638621,1746204862748,-519.7402053,0.00019759,2]
[359638622,1746204862770,-450.0,0.00019759,2]
[359638623,1746204862792,-450.0,0.00019759,2]
[359638624,1746204862815,-450.0,0.00019759,2]
[359638625,1746204862837,-450.0,0.00019759,2]
[359638626,1746204862858,-450.0,0.0001976,2]
[359638627,1746204862880,-450.0,0.0001976,2]
[359638628,1746204862903,-450.0,0.0001976,2]
[359638629,1746204862924,-2619.23,0.0001976,2]
[359638630,1746204862945,-786.79,0.0001976,2]
[359638631,1746204862967,-1178.51,0.0001976,2]
[359638632,1746204862988,-450.0,0.0001976,2]
[359638633,1746204863009,-2391.97,0.0001976,2]
[359638634,1746204863030,-777.66,0.0001976,2]
[359638635,1746204863051,-597.3,0.0001976,2]
[359638636,1746204864895,450.0,0.00019759,2]
[359638637,1746204865982,623.70888304,0.00019758,2]
[359638638,1746204866018,623.70888304,0.00019758,2]
[359638639,1746204866055,623.70888304,0.00019758,2]
[359638640,1746204866093,623.70888304,0.00019758,2]
[359638641,1746204866125,623.70888304,0.00019758,2]
[359638642,1746204866156,623.70888304,0.00019758,2]
[359638643,1746204866187,623.70888304,0.00019758,2]
[359638644,1746204866219,623.70888304,0.00019758,2]
[359638645,1746204866251,623.70888304,0.00019758,2]
[359638646,1746204866283,623.70888304,0.00019758,2]
[359638647,1746204866316,623.70888304,0.00019758,2]
[359638648,1746204866358,623.70888304,0.00019758,2]
[359638649,1746204866391,623.70888304,0.00019758,2]
[359638650,1746204866423,623.70888304,0.00019758,2]
[359638651,1746204866455,623.70888304,0.00019758,2]
[359638652,1746204866488,623.70888304,0.00019758,2]
[359638653,1746204866520,623.70888304,0.00019758,2]
[359638654,1746204866553,623.70888304,0.00019758,2]
[359638655,1746204866585,623.70888304,0.00019758,2]
[359638656,1746204866629,623.70888304,0.00019758,2]
[359638657,1746204866661,623.70888304,0.00019758,2]
[359638658,1746204866696,623.70888304,0.00019758,2]
[359638659,1746204866730,623.70888304,0.00019758,2]
[359638660,1746204866762,623.70888304,0.00019758,2]
[359638661,1746204866797,623.70888304,0.00019758,2]
[359638662,1746204866829,623.70888304,0.00019758,2]
[359638663,1746204866861,623.70888304,0.00019758,2]
[359638664,1746204866893,623.70888304,0.00019758,2]
[359638665,1746204866926,623.70888304,0.00019758,2]
[359638666,1746204866958,623.70888304,0.00019758,2]
[359638667,1746204866991,623.70888304,0.00019758,2]
[359638668,1746204867029,623.70888304,0.00019758,2]
[359638669,1746204867061,623.70888304,0.00019758,2]
[359638670,1746204867094,623.70888304,0.00019758,2]
[359638671,1746204867127,623.70888304,0.00019758,2]
[359638672,1746204867159,623.70888304,0.00019758,2]
[359638673,1746204867199,623.70888304,0.00019758,2]
[359638674,1746204867294,623.70888304,0.00019758,2]
[359638675,1746204867328,623.70888304,0.00019758,2]
[359638676,1746204867360,623.70888304,0.00019758,2]
[359638677,1746204867394,623.70888304,0.00019758,2]
[359638678,1746204867424,623.70888304,0.00019758,2]
[359638679,1746204867456,623.70888304,0.00019758,2]
[359638680,1746204867508,623.70888304,0.00019758,2]
[359638681,1746204867544,623.70888304,0.00019758,2]
[359638682,1746204867580,623.70888304,0.00019758,2]
[359638683,1746204867619,623.70888304,0.00019758,2]
[359638684,1746204867652,623.70888304,0.00019758,2]
[359638685,1746204867688,623.70888304,0.00019758,2]
[359638686,1746204867814,623.70888304,0.00019758,2]
[359638687,1746204867852,623.70888304,0.00019758,2]
[359638688,1746204867880,573.553888,0.00019758,2]
[359638689,1746204867913,623.70888304,0.00019758,2]
[359638690,1746204867944,623.70888304,0.00019758,2]
[359638691,1746204867980,623.70888304,0.00019758,2]
[359638692,1746204868013,623.70888304,0.00019758,2]
[359638693,1746204868048,623.70888304,0.00019758,2]
[359638694,1746204868083,623.70888304,0.00019758,2]
[359638695,1746204868119,623.70888304,0.00019758,2]
[359638696,1746204868150,623.70888304,0.00019758,2]
[359638697,1746204868192,450.0,0.00019757,2]
[359638698,1746204868222,623.70888304,0.00019758,2]
[359638699,1746204868255,616.36,0.00019758,2]
[359638700,1746204868293,623.70888304,0.00019758,2]
[359638701,1746204868335,623.70888304,0.00019758,2]
[359638702,1746204868373,623.70888304,0.00019758,2]
[359638703,1746204869151,153.06415769,0.00019659,2]
[359638704,1746204871083,498.63,0.00019758,2]
[359638705,1746204871453,450.0,0.00019758,2]
[359638706,1746204872238,450.0,0.00019757,2]
[359638707,1746204876537,450.0,0.00019758,2]
[359638708,1746204876869,3654.24,0.00019758,2]
[359638709,1746204877385,649.59,0.00019758,2]
[359638710,1746204878002,450.0,0.00019759,2]
[359638711,1746204878396,855.13848234,0.0001976,2]
[359638712,1746204878759,450.0,0.00019758,2]
[359638713,1746204879203,671.2,0.00019759,2]
[359638714,1746204879398,2038.52,0.00019758,2]
[359638715,1746204880368,527.8,0.00019757,2]
[359638716,1746204880463,37.47126048,0.00019758,2]
[359638717,1746204880486,2303.96873952,0.00019758,2]
[359638718,1746204882018,572.73,0.00019757,2]
[359638719,1746204883228,623.70888304,0.00019758,2]
[359638720,1746204883268,623.70888304,0.00019758,2]
[359638721,1746204883304,623.70888304,0.00019758,2]
[359638722,1746204883355,623.70888304,0.00019758,2]
[359638723,1746204883397,623.70888304,0.00019758,2]
[359638724,1746204883430,623.70888304,0.00019758,2]
[359638725,1746204883462,623.70888304,0.00019758,2]
[359638726,1746204883502,623.70888304,0.00019758,2]
[359638727,1746204883534,623.70888304,0.00019758,2]
[359638728,1746204883570,623.70888304,0.00019758,2]
[359638729,1746204883606,623.70888304,0.00019758,2]
[359638730,1746204883641,623.70888304,0.00019758,2]
[359638731,1746204883680,623.70888304,0.00019758,2]
[359638732,1746204883712,623.70888304,0.00019758,2]
[359638733,1746204883758,623.70888304,0.00019758,2]
[359638734,1746204883802,623.70888304,0.00019758,2]
[359638735,1746204883838,623.70888304,0.00019758,2]
[359638736,1746204883874,623.70888304,0.00019758,2]
[359638737,1746204883906,623.70888304,0.00019758,2]
[359638738,1746204883940,623.70888304,0.00019758,2]
[359638739,1746204883977,623.70888304,0.00019758,2]
[359638740,1746204884018,623.70888304,0.00019758,2]
[359638741,1746204884067,623.70888304,0.00019758,2]
[359638742,1746204884103,623.70888304,0.00019758,2]
[359638743,1746204884143,623.70888304,0.00019758,2]
[359638744,1746204884178,623.70888304,0.00019758,2]
[359638745,1746204884211,623.70888304,0.00019758,2]
[359638746,1746204884243,623.70888304,0.00019758,2]
[359638747,1746204884275,623.70888304,0.00019758,2]
[359638748,1746204884316,676.99,0.00019757,2]
[359638749,1746204884412,450.0,0.00019759,2]
[359638750,1746204885203,1212.46,0.00019758,2]
[359638751,1746204885332,450.0,0.00019758,2]
[359638752,1746204887213,450.0,0.00019758,2]
[359638753,1746204888533,1740.76,0.00019759,2]
[359638754,1746204888801,401.3356733,0.00019758,2]
[359638755,1746204890307,590.32,0.00019758,2]
[359638756,1746204891823,454.69914751,0.00019757,2]
[359638757,1746204892508,450.0,0.00019757,2]
[359638758,1746204894627,450.0,0.00019757,2]
[359638759,1746204897000,478.79250035,0.00019757,2]
[359638760,1746204897345,450.0,0.00019758,2]
[359638761,1746204900115,857.89,0.00019758,2]
[359638762,1746204900471,450.0,0.00019758,2]
[359638763,1746204901201,656.72,0.00019759,2]
[359638764,1746204901582,2108.51,0.00019758,2]
[359638765,1746204904727,450.0,0.00019758,2]
[359638766,1746204905767,832.75,0.00019759,2]
[359638767,1746204905917,450.0,0.00019758,2]
[359638768,1746204906160,584.56,0.00019757,2]
[359638769,1746204908644,694.63,0.00019758,2]
[359638770,1746204909487,512.5,0.00019758,2]
[359638771,1746204911326,450.0,0.00019759,2]
[359638772,1746204911382,596.60243713,0.00019758,2]
[359638773,1746204913845,450.0,0.00019758,2]
[359638774,1746204913884,703.79,0.00019758,2]
[359638775,1746204916313,450.0,0.00019757,2]
[359638776,1746204917375,450.0,0.00019759,2]
[359638777,1746204918492,582.85,0.00019758,2]
[359638778,1746204920139,1694.73,0.00019758,2]
[359638779,1746204920191,450.0,0.00019758,2]
[359638780,1746204920377,450.0,0.00019757,2]
[359638781,1746204921958,450.0,0.00019759,2]
[359638782,1746204922335,450.0,0.00019758,2]
[359638783,1746204923991,1045.03,0.00019758,2]
[359638784,1746204925296,450.0,0.00019757,2]
[359638785,1746204925717,450.0,0.00019757,2]
[359638786,1746204926376,450.0,0.00019758,2]
[359638787,1746204927124,589.54,0.00019759,2]
[359638788,1746204928269,450.0,0.00019758,2]
[359638789,1746204928304,450.0,0.00019759,2]
[359638790,1746204928365,450.0,0.00019757,2]
[359638791,1746204930214,874.55,0.00019758,2]
[359638792,1746204930242,419.69688529,0.00019759,2]
[359638793,1746204932550,450.0,0.00019759,2]
[359638794,1746204932693,612.71,0.00019758,2]
[359638795,1746204932819,450.0,0.00019758,2]
[359638796,1746204932909,450.0,0.00019758,2]
[359638797,1746204934003,450.0,0.00019758,2]
[359638798,1746204934363,450.0,0.00019758,2]
[359638799,1746204936936,634.77,0.00019759,2]
[359638800,1746204940465,985.1,0.00019758,2]
[359638801,1746204941716,514.65,0.00019758,2]
[359638802,1746204941751,10289.56,0.00019758,2]
[359638803,1746204945125,450.0,0.00019757,2]
[359638804,1746204945180,515.82,0.00019758,2]
[359638805,1746204947262,637.22,0.00019759,2]
[359638806,1746204948470,450.0,0.00019758,2]
[359638807,1746204948521,450.0,0.00019757,2]
[359638808,1746204949261,450.0,0.00019758,2]
[359638809,1746204951434,450.0,0.00019757,2]
[359638810,1746204955831,450.0,0.00019759,2]
[359638811,1746204957377,450.0,0.00019758,2]